Cogmind - Beta 14 @@@ ROGUE MODE // 2024.09.29 @ 23:51:39 Player: BionicBot Result: Destroyed by P-80 Master with Gamma Rifle Performance ------------- Evolutions (9) 4500 Regions Visited (30) 6000 Robots Destroyed (238) 1190 Value Destroyed (11221) 11221 Prototype IDs (38) 760 Alien Tech Used (2) 400 Bonus (7143) 7143 TOTAL SCORE: 31214 Bonus ------- High Alert Combat Kills 126 Follower Combat Kills 2417 Network Hubs Disabled 200 Met Data Miner 300 Met Warlord at Base 500 MAIN.C Attacked Warlord 500 Built Enhanced Grunts 300 A7 Reached Mainframe 300 Met R17 at Cetus 500 Met R17 at Research 2000 Cogmind --------- Core Integrity 0/1600 Matter 153/300 Energy 94/100 System Corruption 60% Temperature Hot (267) Movement Core (50) Location -1/Command Parts ------- > --- POWER (3) -------- (None) > --- PROPULSION (8) --- Armored Medium Treads Armored Heavy Treads > --- UTILITY (11) ----- Improved Melee Analysis Suite Advanced Target Analyzer Advanced Target Analyzer Advanced Weapon Cycler Graphene Brace Advanced Hacking Suite Improved System Shield > --- WEAPON (4) ------- (None) > --- INVENTORY (5) ---- Advanced Sensor Array Core Analyzer Advanced Datajack Advanced Remote Datajack Peak State ------------ > --- POWER ------------ Reinforced Antimatter Reactor Quantum Reactor Light Quantum Reactor > --- PROPULSION ------- Biometal Leg Biometal Leg Biometal Leg Biometal Leg Centrium Leg Centrium Leg Centrium Leg Centrium Leg > --- UTILITY ---------- High-capacity Storage Unit Experimental Sensor Array Advanced Signal Interpreter Long-range Terrain Scanner Advanced Terrain Scan Processor Improved Melee Analysis Suite Core Analyzer Advanced Transmission Jammer Graphene Brace Improved Hacking Suite Improved Hacking Suite > --- WEAPON ----------- Phasing Sabre Phasing Sabre Enhanced Force Lance Enhanced Force Lance > --- INVENTORY -------- Light Quantum Reactor Light Quantum Reactor Matter Drive Medium Treads Medium Treads Biometal Medium Treads Structural Scanner Core Analyzer Microactuators Graphene Brace Point Defense Array Advanced System Shield Matter Neutralizer Improved Proton Missile Launcher Advanced Datajack Advanced Remote Datajack Improved Plasma Cutter [Rating: 191] Favorites ----------- Power Light Quantum Reactor Engine Improved Deuterium Engine Power Core Micro Fission Core Reactor Light Quantum Reactor Propulsion Myomer Leg Treads Light Treads Leg Myomer Leg Wheel Armored Wheel Hover Unit Aerolev Unit Utility High-capacity Storage Unit Device Structural Scanner Storage High-capacity Storage Unit Processor Improved Melee Analysis Suite Hackware Improved Hacking Suite Protection Improved Medium Armor Plating Weapon Phasing Sabre Energy Gun Medium Laser Energy Cannon Matter Neutralizer Ballistic Gun Assault Rifle Ballistic Cannon Bore Cannon Launcher Improved Proton Missile Launcher Special Weapon Improved Plasma Cutter Impact Weapon Powered Hammer Slashing Weapon Phasing Sabre Piercing Weapon Enhanced Force Lance Special Melee Weapon Datajack Build | -11 -10 -10 -10 -9 -8 -7 -7 -7 -7 -6 -6 -6 -6 -6 -5 -5 -5 -5 -5 -4 -4 -4 -4 -4 -4 -3 -3 -2 -1 -1 ------- Run | Yrd Mat Min Exi Min Mat Fac Low Low Zio Pro Fac Low Low Dat Pro Fac Upp Upp War Pro Fac Ext Cet Arc Hub Res Qua Res Acc Com Slots Evolved 18 | . . . . . 4 2 . . . . 2 . . . . 2 . . . . 2 . . . . 2 . 2 2 . Power 2 | . . . . . . . . . . . . . . . . . . . . . 1 . . . . . . 1 . . Propulsion 6 | . . . . . 2 . . . . . 2 . . . . . . . . . . . . . . 1 . 1 . . Utility 9 | . . . . . 2 2 . . . . . . . . . 1 . . . . 1 . . . . 1 . . 2 . Weapon 1 | . . . . . . . . . . . . . . . . 1 . . . . . . . . . . . . . . Parts Attached 503 | 7 4 2 2 11 20 20 5 8 4 14 39 5 14 17 3 43 5 12 9 8 27 28 5 2 17 19 15 35 13 90 Power 51 | 1 1 . . 1 2 2 . . . 1 3 . 1 3 1 2 . 1 1 1 1 . . . 1 1 3 8 2 14 Engine 9 | 1 . . . 1 2 1 . . . 1 2 . 1 . . . . . . . . . . . . . . . . . Core 8 | . 1 . . . . 1 . . . . 1 . . 2 . 2 . 1 . . . . . . . . . . . . Reactor 34 | . . . . . . . . . . . . . . 1 1 . . . 1 1 1 . . . 1 1 3 8 2 14 Propulsion 121 | 2 . . . 3 10 4 . 2 . 3 9 1 4 6 . 7 . 1 2 2 5 3 1 1 8 6 1 7 5 28 Treads 20 | 2 . . . . 2 . . . . . . . . . . . . . . . . . . . . . . . 2 14 Leg 78 | . . . . 1 . . . . . . 8 1 4 6 . 7 . 1 2 2 5 3 1 1 8 6 1 7 3 11 Wheel 13 | . . . . 2 7 . . . . . 1 . . . . . . . . . . . . . . . . . . 3 Hover 10 | . . . . . 1 4 . 2 . 3 . . . . . . . . . . . . . . . . . . . . Flight . | . . . . . . . . . . . . . . . . . . . . . . . . . . . . . . . Utility 245 | 2 2 2 . 2 6 12 3 4 1 6 26 4 8 7 2 31 5 2 6 1 19 9 4 1 8 12 8 16 5 31 Device 144 | 1 1 2 . 1 . 5 1 3 . 3 14 2 4 1 2 20 5 . 6 . 16 3 . . 4 7 5 13 3 22 Storage 10 | 1 1 . . . 1 3 . . . . 2 . . 1 . . . . . . . . . . . . . . . 1 Processor 9 | . . . . . . 1 . . . . 1 . . 1 . . . . . . . . . 1 . 2 . . . 3 Hackware 6 | . . . . . . . . . . . . . . . . . . . . . . . . . . . . . 2 4 Protection 76 | . . . . 1 5 3 2 1 1 3 9 2 4 4 . 11 . 2 . 1 3 6 4 . 4 3 3 3 . 1 Artifact . | . . . . . . . . . . . . . . . . . . . . . . . . . . . . . . . Weapon 86 | 2 1 . 2 5 2 2 2 2 3 4 1 . 1 1 . 3 . 8 . 4 2 16 . . . . 3 4 1 17 Energy Gun 3 | 1 . . . 2 . . . . . . . . . . . . . . . . . . . . . . . . . . Energy Cannon 3 | . . . . . . . . . . . . . . . . . . . . . . . . . . . . . 1 2 Ballistic Gun 14 | 1 1 . 1 1 . . . . . . . . . . . . . . . . . . . . . . . . . 10 Ballistic Cannon 1 | . . . . . . . . . . . . . . . . . . . . . . . . . . . . . . 1 Launcher 9 | . . . . . . . 1 1 . 2 . . . . . . . 2 . 2 . . . . . . 1 . . . Special Weapon 7 | . . . . . . . . . . . . . . . . . . . . . . 4 . . . . 1 . . 2 Impact Weapon 5 | . . . . . . 1 1 1 . . 1 . . 1 . . . . . . . . . . . . . . . . Slashing Weapon 30 | . . . 1 2 1 1 . . . 2 . . 1 . . 2 . 5 . 2 2 8 . . . . . 3 . . Piercing Weapon 10 | . . . . . 1 . . . 3 . . . . . . 1 . . . . . 1 . . . . 1 1 . 2 Special Melee Weapon 4 | . . . . . . . . . . . . . . . . . . 1 . . . 3 . . . . . . . . Unidentified Prototypes 18 | . . 1 1 . 1 . . . . . 1 . 1 2 . . . . 5 . 1 . 1 . . 2 1 1 . . Corrupted Parts 4 | . . . . . . . . . . . . . . 1 . . . . . . 1 . . . 2 . . . . . System Corruption 20 | . . . . . . . . . . . . . . 7 . . . . . . 1 . . . 12 . . . . . Parts Lost 134 | . . . . 7 . . . 1 . 8 4 . . 4 . 9 . 4 . 1 8 3 1 1 6 . 2 7 8 60 Power 24 | . . . . 2 . . . . . 1 . . . 2 . 1 . 1 . 1 . . . . 1 . 1 1 . 13 Propulsion 55 | . . . . 2 . . . 1 . 4 2 . . 1 . 4 . . . . 4 1 . 1 3 . 1 3 5 23 Utility 29 | . . . . . . . . . . 2 2 . . . . 3 . 2 . . 2 1 1 . 2 . . 2 2 10 Weapon 26 | . . . . 3 . . . . . 1 . . . 1 . 1 . 1 . . 2 1 . . . . . 1 1 14 Highest Loss Streak 20 | . . . . 5 . . . 1 . 7 2 . . 2 . 4 . 4 . 1 7 1 1 1 4 . 2 3 6 20 To Critical Strikes 1 | . . . . . . . . . . . . . . . . 1 . . . . . . . . . . . . . . Average Slot Usage (%) 93 | . 98 100 100 93 89 99 100 99 100 82 87 100 99 98 100 98 88 91 93 91 88 89 89 90 91 98 99 91 88 80 Engine 1 | . 2 . . 3 7 5 7 7 7 6 3 . 2 3 . . . . . . . . . . . . . . . . Core 2 | . 11 14 14 8 . 1 . . . . 2 6 3 1 . 2 5 4 3 . . . . . . . . . . . Reactor 3 | . . . . . . . . . . . . . . 1 5 2 . . 1 2 5 5 5 5 4 8 8 11 10 9 Treads 3 | . 28 28 28 17 1 . . . . . . . . . . . . . . . . . . . . . . . 4 5 Leg 21 | . . . . 3 1 . . . . . 29 40 39 36 37 32 27 31 33 33 29 29 30 30 29 31 30 30 22 16 Wheel 1 | . . . . 4 27 . . . . . . . . . . . . . . . . . . . . . . . . . Hover 4 | . . . . . . 30 30 29 30 19 2 . . . . . . . . . . . . . . . . . . . Device 14 | . 12 14 14 8 . 22 22 22 23 21 17 18 19 8 12 17 16 12 15 11 18 15 7 5 10 21 20 12 11 9 Storage 6 | . 14 14 14 14 9 7 7 7 7 7 5 6 6 6 6 5 5 5 5 5 5 5 5 5 5 4 4 4 3 4 Processor 6 | . . . . . . 7 7 7 7 2 2 6 6 10 12 9 5 5 5 5 5 5 5 8 10 10 13 12 11 13 Protection 6 | . . . . 5 23 7 7 7 7 7 7 7 6 9 6 4 5 9 5 10 5 9 17 16 10 3 1 3 1 . Ballistic Gun 2 | . 15 28 28 19 . . . . . . . . . . . . . . . . . . . . . . . . . 2 Impact Weapon 4 | . . . . . . 3 6 6 6 . . 6 6 7 12 11 11 11 11 11 6 . . . . . . . . . Slashing Weapon 9 | . . . . 1 8 11 7 7 7 5 6 6 6 10 6 9 11 10 11 10 13 16 20 20 20 18 15 11 7 3 Piercing Weapon 1 | . . . . . 9 . . . . 7 5 . . . . 1 . . . . . 1 . . . . 1 3 3 3 Peak Build Rating 191 | 7 10 18 18 16 48 59 55 58 58 58 73 67 70 85 90 106 92 96 107 107 128 135 148 148 151 157 153 164 159 191 Average Rating 89 | 5 8 10 11 11 32 54 54 56 57 43 56 66 67 74 89 94 87 92 102 99 121 129 145 143 142 142 140 152 149 145 On Entrance 77 | . 7 10 11 12 15 48 55 50 58 51 41 63 62 69 85 90 87 88 89 107 94 128 135 148 143 118 139 137 141 133 Naked Turns . | . . . . . . . . . . . . . . . . . . . . . . . . . . . . . . . Heaviest Build 161 | 13 30 30 30 30 109 49 49 50 47 48 71 69 71 82 71 85 85 92 91 102 121 123 127 127 120 120 106 143 134 161 Greatest Support 232 | 40 40 40 40 40 56 31 31 34 34 34 100 100 100 142 142 143 92 112 114 123 145 145 145 145 156 179 174 212 184 232 Greatest Overweight (x) 14 | 2 . . . 2 3 1 1 1 1 3 14 . . . . 1 . . . 1 1 1 . . . . . . . 10 Average Overweight (x) . | . . . . . 1 1 1 1 1 1 . . . . . . . . . . . . . . . . . . . . Largest Inventory Capacity 25 | 8 15 15 15 15 25 25 15 15 15 15 20 20 20 20 20 20 20 20 20 20 20 20 20 20 20 20 20 20 20 20 Average Capacity 18 | 7 14 15 15 15 22 15 15 15 15 15 16 20 20 20 20 20 20 20 20 20 20 20 20 20 20 20 20 20 20 19 Most Carried 25 | 2 12 15 15 15 25 25 15 15 15 15 20 20 20 20 20 20 20 20 20 20 20 20 20 20 20 20 20 20 18 20 Average Carried 17 | 1 7 13 14 13 19 14 15 14 14 11 14 20 19 18 19 18 19 19 19 19 17 19 19 19 19 18 19 19 14 17 Final Capacity 25 | 8 15 15 15 15 25 15 15 15 15 15 20 20 20 20 20 20 20 20 20 20 20 20 20 20 20 20 20 20 20 5 Final Carried 25 | 2 12 15 15 11 25 15 15 15 15 10 20 20 19 20 20 19 20 18 20 20 16 19 20 20 19 20 20 18 16 4 Class Distribution -------------------- 34% | Gladiator 30% | Scavenger-Gladiator 15% | Mutant 8% | Commander-Gladiator 5% | Scavenger-Assassin 3% | Scavenger-Mutant Dominant Class ---------------- Mutant | -10/Materials Mutant | -10/Mines Mutant | -10/Exiles Mutant | -9/Mines Mutant | -8/Materials Gladiator | -7/Factory Gladiator | -7/Lower Caves Gladiator | -7/Lower Caves Gladiator | -7/Zion Gladiator | -6/Proximity Caves Scavenger-Mutant | -6/Factory Scavenger-Assassin | -6/Lower Caves Scavenger-Assassin | -6/Lower Caves Scavenger-Gladiator | -6/Data Miner Scavenger-Gladiator | -5/Proximity Caves Gladiator | -5/Factory Gladiator | -5/Upper Caves Gladiator | -5/Upper Caves Gladiator | -5/Warlord Gladiator | -4/Proximity Caves Gladiator | -4/Factory Commander-Gladiator | -4/Extension Commander-Gladiator | -4/Cetus Commander-Gladiator | -4/Archives Scavenger-Gladiator | -4/Hub_04(d) Scavenger-Gladiator | -3/Research Scavenger-Gladiator | -3/Quarantine Scavenger-Gladiator | -2/Research Scavenger-Gladiator | -1/Access Scavenger-Gladiator | -1/Command Resources | -11 -10 -10 -10 -9 -8 -7 -7 -7 -7 -6 -6 -6 -6 -6 -5 -5 -5 -5 -5 -4 -4 -4 -4 -4 -4 -3 -3 -2 -1 -1 ----------- Run | Yrd Mat Min Exi Min Mat Fac Low Low Zio Pro Fac Low Low Dat Pro Fac Upp Upp War Pro Fac Ext Cet Arc Hub Res Qua Res Acc Com Matter Collected 6504 | 291 192 192 . 244 160 261 82 179 . 206 375 20 160 194 53 450 45 222 96 102 225 310 52 20 128 192 176 380 125 1372 Remotely . | . . . . . . . . . . . . . . . . . . . . . . . . . . . . . . . Salvage Created 13067 | 87 186 161 . 314 1029 618 . 170 . 143 1093 . 238 371 . 1387 119 660 . 415 708 650 65 164 268 131 470 870 524 2226 Parts 633 | 6 18 15 . 24 51 35 . 9 . 3 40 . 15 10 . 57 4 30 . 9 29 28 5 14 12 4 29 27 27 132 Haulers Intercepted 7 | . . . . . 4 1 . . . . . . . . . . . . . . . . . . . . . 2 . . Recyclers Shooed 6 | . . 1 . 2 . 1 . . . . . . . . . . . . . . 1 . . . . . . . 1 . Parts Field Recycled . | . . . . . . . . . . . . . . . . . . . . . . . . . . . . . . . Retrieved Matter . | . . . . . . . . . . . . . . . . . . . . . . . . . . . . . . . Parts Self-Destructed 47 | . . . . . . . . 8 . 7 . 5 . . . . 1 20 . 6 . . . . . . . . . . Prevented 6 | . . . . . . . . . . . . . . . . . . 5 . 1 . . . . . . . . . . Kills | -11 -10 -10 -10 -9 -8 -7 -7 -7 -7 -6 -6 -6 -6 -6 -5 -5 -5 -5 -5 -4 -4 -4 -4 -4 -4 -3 -3 -2 -1 -1 ------- Run | Yrd Mat Min Exi Min Mat Fac Low Low Zio Pro Fac Low Low Dat Pro Fac Upp Upp War Pro Fac Ext Cet Arc Hub Res Qua Res Acc Com Combat Hostiles Destroyed 180 | . 2 5 . 9 18 2 . 7 . 6 10 . 4 4 . 15 1 15 . 8 6 8 1 . 3 1 6 12 9 28 Melee 126 | . . . . 3 18 2 . . . 2 10 . 4 3 . 14 1 8 . 2 6 8 1 . 3 1 3 12 9 16 Guns 24 | . 2 5 . 6 . . . . . . . . . . . . . . . . . . . . . . . . . 11 Cannons 1 | . . . . . . . . . . . . . . . . . . . . . . . . . . . . . . 1 AOE 23 | . . . . . . . . 7 . 4 . . . . . . . 6 . 3 . . . . . . 3 . . . Classes Destroyed 23 | 2 2 2 . 3 4 1 . 2 . . . . . . . . 1 1 . . . . . . . . . 2 . 3 Worker 10 | . . 1 . 1 . 3 . . . . . . . . . 2 . . . . . . . . 2 1 . . . . Builder 3 | . . . . 1 . . . . . . . . . . . . . . . . . 1 . . . . 1 . . . Tunneler 5 | 2 . . . 1 . 1 . . . . . . . . . . . . . . . . . . . . . 1 . . Hauler 7 | . . . . . 4 1 . . . . . . . . . . . . . . . . . . . . . 2 . . Recycler 17 | 1 1 . . 1 . 3 . . . . 3 . . . . 3 . . . . 2 1 . . . . 1 . . 1 Operator 7 | . . . . . 1 . . . . . 1 . . . . . . . . . . . . 5 . . . . . . Watcher 13 | . 2 . . . 1 4 . . . . 2 . . . . 1 . . . . 1 . . . . . . . . 2 Swarmer 46 | . . 3 . 1 5 . . 5 . 3 1 . . . . . . 7 . 4 . 3 . . . . 3 5 5 1 Grunt 45 | . 2 2 . 3 8 . . 1 . 3 7 . . . . 5 . 7 . 1 . 1 . . . . . 4 . 1 Brawler 1 | . . . . . 1 . . . . . . . . . . . . . . . . . . . . . . . . . Duelist 2 | . . . . . . . . 1 . . . . . . . . . . . 1 . . . . . . . . . . Sentry 21 | . . . . . 4 1 . . . . 2 . . . . 2 1 . . . 2 4 . . 2 1 . . 2 . Demolisher 1 | . . . . 1 . . . . . . . . . . . . . . . . . . . . . . . . . . Specialist 1 | . . . . . . . . . . . . . . . . . . . . . . . . . . . . . . 1 Hunter 13 | . . . . . . . . . . . . . . . . . . 1 . 2 2 . . . 1 . . . 2 5 Programmer 27 | . . . . . . 1 . . . . . . . . . 8 . . . . 2 . . . . . 3 . . 13 Heavy 1 | . . . . . . . . . . . . . . . . . . . . . . . . . . . . . . 1 Cetus Guard 1 | . . . . . . . . . . . . . . . . . . . . . . . 1 . . . . . . . Enhanced Grunt 4 | . . . . . . . . . . . . . . 4 . . . . . . . . . . . . . . . . Striker 2 | . . . . . . . . . . . . . . . . . . . . . . . . . . . . 2 . . Executioner 1 | . . . . . . . . . . . . . . . . . . . . . . . . . . . . 1 . . Samaritan 1 | . . . . . . . . . . . . . . . . . 1 . . . . . . . . . . . . . Tinkerer 1 | . . . . . . . . 1 . . . . . . . . . . . . . . . . . . . . . . Assembled 4 | . . . . 4 . . . . . . . . . . . . . . . . . . . . . . . . . . Thug 5 | . . . . . . . . . . . . . 4 . . . . . . . . . . . . . . . . 1 Guerrilla 2 | . . . . . . . . . . . . . . . . . . . . . . . . . . . . . . 2 Wizard 1 | . . . . . . . . . . . . . . . . . . . . . . . . . . . . . . 1 Mutant 2 | . . . . . . . . . . . . . . . . . . . . . . . . . . . . . . 2 Best Kill Streak 9 | 3 3 3 . 5 5 3 . 7 . 3 6 . 3 2 . 4 1 5 . 4 3 4 1 2 2 1 4 9 5 4 Combat Bots Only 9 | . 1 3 . 3 5 1 . 7 . 3 5 . 3 2 . 4 1 5 . 4 2 3 1 . 1 1 3 9 5 4 Max Kills in Single Turn 3 | 1 1 1 . 1 1 1 . 2 . 2 1 . 1 1 . 1 1 3 . 2 1 1 1 1 1 1 3 1 1 1 Gunslinging . | . . . . . . . . . . . . . . . . . . . . . . . . . . . . . . . Exploded 3 | . . . . . . . . 2 . 2 . . . . . . . 3 . 2 . . . . . . 3 . . . Melee 1 | . . . . 1 1 1 . . . 1 1 . 1 1 . 1 1 1 . 1 1 1 1 . 1 1 1 1 1 1 Uniques/NPCs Destroyed . | . . . . . . . . . . . . . . . . . . . . . . . . . . . . . . . Combat | -11 -10 -10 -10 -9 -8 -7 -7 -7 -7 -6 -6 -6 -6 -6 -5 -5 -5 -5 -5 -4 -4 -4 -4 -4 -4 -3 -3 -2 -1 -1 -------- Run | Yrd Mat Min Exi Min Mat Fac Low Low Zio Pro Fac Low Low Dat Pro Fac Upp Upp War Pro Fac Ext Cet Arc Hub Res Qua Res Acc Com Hostile Shots Fired 2224 | . 16 21 . 47 64 34 . 19 . 73 122 . 6 24 . 177 2 119 13 92 132 89 13 17 142 4 65 165 71 697 Missed 690 | . 3 7 . 9 22 14 . 8 . 21 35 . . 4 . 58 . 40 9 26 47 34 3 8 47 3 17 61 19 195 Damage Taken 33147 | . 161 141 . 744 519 166 . 173 . 1022 1076 . 126 851 . 3004 48 1400 213 1144 1631 1405 282 227 1998 21 1048 2501 1205 12041 Core 3804 | . 16 39 . 162 61 50 . 27 . 218 147 . . 156 . 253 . 60 39 121 45 123 . 23 315 . 67 265 52 1565 Absorbed by Shields 367 | . . . . . . . . . . . . . . . . . . . . . . . 67 . . . . 300 . . Redirected to Shielding 194 | . . . . 31 5 . . . . 24 20 . . . . . . . . . . . . . . . . . . 114 Ignored by Resistances 237 | . . . . . 10 . . . . . . . . . . 70 . . . 133 . 24 . . . . . . . . Regen/Repaired (Parts) 503 | . . . . . . . . . 253 . . . . . . . . . 250 . . . . . . . . . . . Core Remaining (%) 67 | 100 . . . 13 88 . . . . 57 . . . . 64 . . . . 52 . . . . 56 . 94 81 . . Volleys Fired 181 | 7 16 16 . 38 . . 3 8 . 6 . . . . . . . 3 . 4 . . . . . . 3 . 5 72 Largest 4 | 2 2 2 . 2 . . 1 1 . 1 . . . . . . . 1 . 1 . . . . . . 1 . 1 4 Hottest 171 | 70 70 40 . 115 . . 33 33 . 33 . . . . . . . 43 . 43 . . . . . . 43 . 105 171 Shots Fired 363 | 14 32 32 . 74 . . 3 8 . 6 . . . . . . . 3 . 4 . . . . . . 3 . 5 179 Gun 295 | 14 32 32 . 74 . . . . . . . . . . . . . . . . . . . . . . . . . 143 Cannon 41 | . . . . . . . . . . . . . . . . . . . . . . . . . . . . . 5 36 Launcher 27 | . . . . . . . 3 8 . 6 . . . . . . . 3 . 4 . . . . . . 3 . . . Special . | . . . . . . . . . . . . . . . . . . . . . . . . . . . . . . . Kinetic 259 | 7 16 32 . 46 . . . . . . . . . . . . . . . . . . . . . . . . . 158 Thermal 77 | 7 16 . . 28 . . . . . . . . . . . . . . . . . . . . . . . . 5 21 Explosive 17 | . . . . . . . 3 8 . 6 . . . . . . . . . . . . . . . . . . . . Electromagnetic 10 | . . . . . . . . . . . . . . . . . . 3 . 4 . . . . . . 3 . . . Robot Hit Streak 11 | 3 8 10 . 6 . . . 2 . 3 . . . . . . . 1 . . . . . . . . 1 . . 11 Robot Miss Streak 7 | 4 1 2 . 3 . . . 5 . 2 . . . . . . . 2 . 1 . . . . . . 1 . . 7 Penetration Max 1 | . . . . . . . . . . . . . . . . . . . . . . . . . . . . . . 1 Secondary Targets 7 | . . . . 1 . . . . . . . . . . . . . . . . . . . . . . . . . 6 Max Gunslinging Chain 1 | . . . . 1 . . . . . . . . . . . . . . . . . . . . . . . . . 1 Shots Hit Robots 820 | 7 23 21 . 48 58 23 . 6 . 5 44 . 9 31 . 68 6 30 . 15 29 69 5 6 28 4 19 48 30 188 Core Hits 354 | 4 10 9 . 23 24 11 . 11 . 23 18 . 6 11 . 23 3 20 . 9 13 12 2 4 8 3 12 19 13 63 Critical Kills 4 | . . 1 . . . . . . . . . . . . . . . . . 1 . . . . . . . . . 2 Critical Parts Destroyed 14 | . . 1 . . . . . . . . . . . 1 . 1 . 1 . 1 2 . . . . . . . . 7 Critical Strikes 107 | . 1 2 . 1 7 1 . . . . 9 . 1 5 . 14 1 3 . 5 4 7 . . 6 . 1 8 4 27 Burn 2 | . 1 . . 1 . . . . . . . . . . . . . . . . . . . . . . . . . . Destroy 11 | . . 2 . . . . . . . . . . . . . . . . . . . . . . . . . . . 9 Smash 7 | . . . . . . . . . . . . . . 1 . 1 . 1 . 2 2 . . . . . . . . . Sever 70 | . . . . . 7 1 . . . . 9 . 1 4 . 13 1 2 . 3 2 7 . . 6 . . 8 2 4 Impale 17 | . . . . . . . . . . . . . . . . . . . . . . . . . . . 1 . 2 14 Melee Attacks 962 | . . . . 3 74 44 2 5 . 4 57 . 14 60 . 127 7 37 . 32 50 81 14 10 46 12 30 84 45 124 Thermal 20 | . . . . . . . . . . . . . . . . . . . . 14 3 3 . . . . . . . . Impact 107 | . . . . . . 5 1 . . . . . 3 26 . 35 2 9 . 8 18 . . . . . . . . . Slashing 651 | . . . . 3 59 39 1 5 . 4 55 . 11 34 . 91 5 27 . 10 29 51 14 10 46 12 17 70 33 25 Piercing 157 | . . . . . 15 . . . . . 2 . . . . 1 . . . . . 1 . . . . 13 14 12 99 Sneak Attacks 80 | . . . . . 5 9 . 1 . 2 4 . . 1 . 5 1 1 . . 3 29 . 6 3 1 2 4 1 2 Combat Hostiles 5 | . . . . . . . . . . 2 . . . . . . . 1 . . . 2 . . . . . . . . Follow-up Attacks 157 | . . . . . 8 . . . . . 1 . 1 4 . 27 1 7 . 10 8 12 2 . 8 1 7 22 13 25 Damage Inflicted 35827 | 96 286 260 . 788 2796 1493 . 953 . 1004 2277 . 418 1674 . 3444 325 1682 . 937 1386 1857 240 681 1377 203 1067 2133 1348 7102 Guns 3650 | 96 286 260 . 586 . . . . . . . . . . . . . . . . . . . . . . . . . 2422 Cannons 352 | . . . . . . . . . . . . . . . . . . . . . . . . . . . . . . 352 Explosions 2250 | . . . . . . . . 638 . 816 . . . . . . . 387 . 200 . . . . . . 209 . . . Melee 29453 | . . . . 186 2796 1493 . 315 . 188 2277 . 418 1674 . 3430 325 1295 . 725 1386 1857 193 681 1344 203 858 2133 1348 4328 Ramming 122 | . . . . 16 . . . . . . . . . . . 14 . . . 12 . . 47 . 33 . . . . . Kinetic 3238 | 59 122 260 . 362 . . . . . . . . . . . . . . . . . . . . . . . . . 2435 Thermal 931 | 37 164 . . 224 . . . . . . . . . . . . . 145 . . . . . . . . 22 . . 339 Explosive 1454 | . . . . . . . . 638 . 816 . . . . . . . . . . . . . . . . . . . . Electromagnetic 629 | . . . . . . . . . . . . . . . . . . 242 . 200 . . . . . . 187 . . . Impact 2123 | . . . . . . . . . . . . . . 395 . 535 52 337 . 341 463 . . . . . . . . . Slashing 22144 | . . . . 186 2666 1493 . 315 . 188 2243 . 418 1279 . 2895 273 958 . 384 923 1857 193 681 1344 203 397 1543 954 751 Piercing 5186 | . . . . . 130 . . . . . 34 . . . . . . . . . . . . . . . 461 590 394 3577 Highest Corruption 59 | . . . . 3 . 2 2 2 . . . . . 7 7 18 18 18 18 2 3 1 1 1 19 5 10 . . 59 Average Corruption 7 | . . . . 3 . 1 2 1 . . . . . 7 7 8 18 18 3 1 1 1 1 1 2 5 6 . . 26 Corruption Purged 5 | . . . . . . . . 2 . . . . . . . . . . . . 3 . . . . . . . . . Corruption Blocked . | . . . . . . . . . . . . . . . . . . . . . . . . . . . . . . . Effects 272 | . . . . 1 . 8 7 2 . . . . . 3 15 40 29 36 3 2 2 7 2 2 5 13 15 . . 80 Message Errors 66 | . . . . . . . 2 . . . . . . 2 4 8 12 6 2 1 . 2 1 1 3 8 3 . . 11 Matter Fused 68 | . . . . . . 3 2 . . . . . . 1 3 9 3 11 . 1 1 4 1 . 1 1 6 . . 21 Heat Flow Errors 34 | . . . . . . 1 2 . . . . . . . 2 4 1 4 1 . 1 . . . 1 2 1 . . 14 Energy Discharges 32 | . . . . . . 2 . . . . . . . . 5 6 5 7 . . . . . . . 1 1 . . 5 Parts Rejected 3 | . . . . 1 . . . . . . . . . . . . . . . . . . . . . . . . . 2 Parts Fused 2 | . . . . . . . . . . . . . . . . 1 1 . . . . . . . . . . . . . Data Loss (minor) 24 | . . . . . . . 1 2 . . . . . . . 5 5 4 . . . . . 1 . . 3 . . 3 Data Loss (major) 13 | . . . . . . 2 . . . . . . . . 1 5 1 2 . . . 1 . . . . . . . 1 Misfires 1 | . . . . . . . . . . . . . . . . . . . . . . . . . . . . . . 1 Alerts 7 | . . . . . . . . . . . . . . . . 2 1 1 . . . . . . . 1 . . . 2 Misdirections 3 | . . . . . . . . . . . . . . . . . . 1 . . . . . . . . 1 . . 1 Weapon Failures 19 | . . . . . . . . . . . . . . . . . . . . . . . . . . . . . . 19 Overload Shots . | . . . . . . . . . . . . . . . . . . . . . . . . . . . . . . . Overflow Damage 3018 | . . . . . 197 376 . 245 . 47 269 . . 173 . 156 . 119 . 95 247 100 . 120 31 . 136 59 124 524 Projectiles 4 | . . . . . . . . . . . . . . . . . . . . 2 . . . . . . . . . 2 Explosions 90 | . . . . . . . . 40 . 47 . . . . . . . . . 3 . . . . . . . . . . Melee 2924 | . . . . . 197 376 . 205 . . 269 . . 173 . 156 . 119 . 90 247 100 . 120 31 . 136 59 124 522 Knockbacks 17 | . . . . . . . . . . . . . . 2 . 4 . 4 . 3 4 . . . . . . . . . Impact 16 | . . . . . . . . . . . . . . 2 . 4 . 4 . 2 4 . . . . . . . . . Kinetic . | . . . . . . . . . . . . . . . . . . . . . . . . . . . . . . . Secondary 1 | . . . . . . . . . . . . . . . . . . . . 1 . . . . . . . . . . Self-Inflicted Damage 53 | . . . . . . . . 10 . 22 . . . . . . . . . 21 . . . . . . . . . . Shots 5 | . . . . . . . . 1 . 2 . . . . . . . . . 2 . . . . . . . . . . Rammed 2 | . . . . 2 . . . . . . . . . . . . . . . . . . . . . . . . . . Targets Rammed 12 | . . . . 4 . . . . . . . . . . . 2 . . . 2 . . 1 . 3 . . . . . Kicked 8 | . . . . . . . . . . . . . . . . 2 . . . 2 . . 1 . 3 . . . . . Crushed 2 | . . . . 2 . . . . . . . . . . . . . . . . . . . . . . . . . . Highest Temperature 683 | 36 143 22 . 318 8 90 137 15 . 25 14 . . . 209 270 159 277 334 12 131 10 4 . 139 139 88 18 247 683 Average Temperature 102 | 17 54 16 . 113 8 40 75 9 . 14 14 . . . 109 98 82 95 137 6 70 4 4 . 76 70 60 8 107 142 Received Heat Transfer 3186 | . 90 63 . 57 153 30 . 27 . 403 340 . 54 . . 429 18 447 30 180 45 228 45 27 72 . . 142 45 261 Effects 17 | . . . . . . . . . . . . . . . . 3 . 1 . . . . . . . . . . 1 12 Energy Bleed 2 | . . . . . . . . . . . . . . . . . . . . . . . . . . . . . 1 1 Interference 10 | . . . . . . . . . . . . . . . . 3 . 1 . . . . . . . . . . . 6 Matter Decay 2 | . . . . . . . . . . . . . . . . . . . . . . . . . . . . . . 2 Damage (minor) 1 | . . . . . . . . . . . . . . . . . . . . . . . . . . . . . . 1 Damage (major) 1 | . . . . . . . . . . . . . . . . . . . . . . . . . . . . . . 1 Damage (core) 1 | . . . . . . . . . . . . . . . . . . . . . . . . . . . . . . 1 Siege Activations . | . . . . . . . . . . . . . . . . . . . . . . . . . . . . . . . Robots Corrupted 6 | . . . . . . . . . . . . . . 1 . 1 . 1 . 3 . . . . . . . . . . Combat Hostiles 5 | . . . . . . . . . . . . . . 1 . . . 1 . 3 . . . . . . . . . . Parts Fried 10 | . . . . . . . . . . . . . . . . 4 . 2 . 2 1 . . . . . 1 . . . Impact Corruptions 20 | . . . . . . . . . . . . . . 5 . 3 . 4 . 4 4 . . . . . . . . . Robots Melted . | . . . . . . . . . . . . . . . . . . . . . . . . . . . . . . . Combat Hostiles . | . . . . . . . . . . . . . . . . . . . . . . . . . . . . . . . Parts Melted 3 | . . . . 1 . . . . . . . . . . . . . 2 . . . . . . . . . . . . Heat Transferred 1865 | 111 555 . . 666 . . . . . . . . . . . . . 150 . . . . . . . . 50 . . 333 Parts Sabotaged 3 | . . . . . . . . . . 3 . . . . . . . . . . . . . . . . . . . . Parts Stolen . | . . . . . . . . . . . . . . . . . . . . . . . . . . . . . . . Parts Stripped . | . . . . . . . . . . . . . . . . . . . . . . . . . . . . . . . Power Chain Reactions 3 | . . . . . . . . . . . . . . . . . . 2 . . . . . . . . 1 . . . Alert | -11 -10 -10 -10 -9 -8 -7 -7 -7 -7 -6 -6 -6 -6 -6 -5 -5 -5 -5 -5 -4 -4 -4 -4 -4 -4 -3 -3 -2 -1 -1 ------- Run | Yrd Mat Min Exi Min Mat Fac Low Low Zio Pro Fac Low Low Dat Pro Fac Upp Upp War Pro Fac Ext Cet Arc Hub Res Qua Res Acc Com Peak Influence 1115 | 15 102 125 . 131 321 167 . . . . 187 . . . . 243 . . . . 104 578 634 445 1115 502 323 433 295 200 Initial 446 | . 9 2 . . . 6 . . . . . . . . . . . . . . . 50 323 178 85 446 182 133 206 164 Average 159 | 5 61 25 . 58 136 46 . . . . 61 . . . . 84 . . . . 34 300 484 399 678 392 224 123 216 93 Maximum Alert Level 4 | . . . . . 1 . . . . . . . . . . 1 . . . . . 2 2 2 4 2 1 2 1 1 Low Security (%) 71 | 100 100 100 . 100 61 100 . . . . 100 . . . . 97 . . . . 100 25 . 1 23 . 29 80 23 99 Level 1 17 | . . . . . 38 . . . . . . . . . . 2 . . . . . 55 2 19 1 48 70 12 76 . Level 2 10 | . . . . . . . . . . . . . . . . . . . . . . 19 97 78 16 51 . 7 . . Level 3 1 | . . . . . . . . . . . . . . . . . . . . . . . . . 56 . . . . . Level 4 . | . . . . . . . . . . . . . . . . . . . . . . . . . 1 . . . . . Level 5 . | . . . . . . . . . . . . . . . . . . . . . . . . . . . . . . . High Security . | . . . . . . . . . . . . . . . . . . . . . . . . . . . . . . . Max Security . | . . . . . . . . . . . . . . . . . . . . . . . . . . . . . . . Squads Dispatched 46 | . 1 . . . 1 1 . . . 1 1 . . . . 7 . . . . 3 1 . . 10 4 2 1 1 12 Investigation 10 | . . . . . . . . . . . . . . . . 1 . . . . 1 . . . 5 . . . . 3 Extermination 17 | . . . . . . 1 . . . . 1 . . . . 5 . . . . 2 . . . . . 1 . . 7 Reinforcement 18 | . 1 . . . 1 . . . . . . . . . . 1 . . . . . 1 . . 5 4 1 1 1 2 Assault 1 | . . . . . . . . . . 1 . . . . . . . . . . . . . . . . . . . . Garrison . | . . . . . . . . . . . . . . . . . . . . . . . . . . . . . . . Intercept . | . . . . . . . . . . . . . . . . . . . . . . . . . . . . . . . Searches Triggered . | . . . . . . . . . . . . . . . . . . . . . . . . . . . . . . . Construction Impeded 3 | . . . . . . . . . . . . . . . . . . . . . . 1 . . 2 . . . . . Haulers Reinforced 2 | . . . . . . . . . . . . . . . . . . . . . . . . . . 1 . 1 . . Active Scanning Responses . | . . . . . . . . . . . . . . . . . . . . . . . . . . . . . . . Cargo Convoy Interrupts . | . . . . . . . . . . . . . . . . . . . . . . . . . . . . . . . Stealth | -11 -10 -10 -10 -9 -8 -7 -7 -7 -7 -6 -6 -6 -6 -6 -5 -5 -5 -5 -5 -4 -4 -4 -4 -4 -4 -3 -3 -2 -1 -1 --------- Run | Yrd Mat Min Exi Min Mat Fac Low Low Zio Pro Fac Low Low Dat Pro Fac Upp Upp War Pro Fac Ext Cet Arc Hub Res Qua Res Acc Com Distress Signals 24 | . . . . . 2 . . . . . 2 . . . . 1 . . 1 . 1 . 2 . 2 3 . 5 2 3 Communications Jammed 82 | . . . . . . . . . . . . . . . . . . . . . . . . . . . 12 . . 70 Distress Signals 82 | . . . . . . . . . . . . . . . . . . . . . . . . . . . 12 . . 70 Times Spotted 405 | . 7 5 . 15 35 11 . 10 . 15 17 . 6 4 . 27 1 25 40 9 8 25 9 5 24 2 11 34 12 48 Peak Tracking Total 12 | . 2 3 . 3 6 2 . 7 . 10 6 . 4 2 . 5 1 4 12 4 3 4 5 3 10 1 4 10 6 5 Tactical Retreats 47 | . 1 . . 1 5 1 . 2 . 3 3 . 2 . . 7 . 4 3 . . 5 . . 2 . . 7 1 . Traps | -11 -10 -10 -10 -9 -8 -7 -7 -7 -7 -6 -6 -6 -6 -6 -5 -5 -5 -5 -5 -4 -4 -4 -4 -4 -4 -3 -3 -2 -1 -1 ------- Run | Yrd Mat Min Exi Min Mat Fac Low Low Zio Pro Fac Low Low Dat Pro Fac Upp Upp War Pro Fac Ext Cet Arc Hub Res Qua Res Acc Com Traps Triggered 8 | . . . . . 3 1 . . . . . . . . . 3 . . 1 . . . . . . . . . . . Indirectly . | . . . . . . . . . . . . . . . . . . . . . . . . . . . . . . . Trap Hack Attempts . | . . . . . . . . . . . . . . . . . . . . . . . . . . . . . . . Triggered . | . . . . . . . . . . . . . . . . . . . . . . . . . . . . . . . Disarmed 4 | . . . . . . . . . . . . . . . . . . . . . . . . . . . 4 . . . Reprogrammed . | . . . . . . . . . . . . . . . . . . . . . . . . . . . . . . . Reused . | . . . . . . . . . . . . . . . . . . . . . . . . . . . . . . . Traps Extracted . | . . . . . . . . . . . . . . . . . . . . . . . . . . . . . . . Installed . | . . . . . . . . . . . . . . . . . . . . . . . . . . . . . . . Triggered 17 | . . . . . . . . . . . . . . . . . . . 15 . . . . . . 2 . . . . Machines | -11 -10 -10 -10 -9 -8 -7 -7 -7 -7 -6 -6 -6 -6 -6 -5 -5 -5 -5 -5 -4 -4 -4 -4 -4 -4 -3 -3 -2 -1 -1 ---------- Run | Yrd Mat Min Exi Min Mat Fac Low Low Zio Pro Fac Low Low Dat Pro Fac Upp Upp War Pro Fac Ext Cet Arc Hub Res Qua Res Acc Com Machines Disabled 25 | . . . . . . . . . . . . . . 1 . . . . . . . 5 . 3 6 . 6 . . 4 Max in Single Turn 4 | . . . . . . . . . . . . . . 1 . . . . . . . 1 . . . . 4 . . 1 Garrison Access 5 | . . . . . . 1 . . . . . . . . . . . . . . . . . . . . . 3 1 . Phase Generator 1 | . . . . . . . . . . . . . . . . . . . . . . . . . . . . . . 1 Network Hub 1 | . . . . . . . . . . . . . . . . . . . . . . . . . 1 . . . . . Machines Repaired . | . . . . . . . . . . . . . . . . . . . . . . . . . . . . . . . Machines Dismantled 9 | . . . . . . . . . . . . . . . . . . . . . . 4 . . . . 1 . . 4 Machines Sabotaged 1 | . . . . . . . . . . . . . . . . . . . . . . . . . 1 . . . . . Overloaded Fab Kills . | . . . . . . . . . . . . . . . . . . . . . . . . . . . . . . . Hacking | -11 -10 -10 -10 -9 -8 -7 -7 -7 -7 -6 -6 -6 -6 -6 -5 -5 -5 -5 -5 -4 -4 -4 -4 -4 -4 -3 -3 -2 -1 -1 --------- Run | Yrd Mat Min Exi Min Mat Fac Low Low Zio Pro Fac Low Low Dat Pro Fac Upp Upp War Pro Fac Ext Cet Arc Hub Res Qua Res Acc Com Machines Accessed 52 | . 4 . 1 . 4 4 . 1 . . . 1 . 4 . . 1 . 1 . 2 8 1 . 5 2 3 1 4 5 Terminals 41 | . 4 . . . 4 3 . . . . . . . . . . . . . . 2 8 1 . 5 2 3 1 3 5 Fabricators . | . . . . . . . . . . . . . . . . . . . . . . . . . . . . . . . Repair Stations . | . . . . . . . . . . . . . . . . . . . . . . . . . . . . . . . Recycling Units . | . . . . . . . . . . . . . . . . . . . . . . . . . . . . . . . Scanalyzers . | . . . . . . . . . . . . . . . . . . . . . . . . . . . . . . . Garrison Access 2 | . . . . . . 1 . . . . . . . . . . . . . . . . . . . . . . 1 . Total Hacks 144 | . 13 . 2 . 14 8 . 1 . . . 1 . 29 . . 1 . 5 . 4 13 2 . 10 6 6 2 7 20 Successful 77 | . 6 . 2 . 7 4 . 1 . . . 1 . 29 . . 1 . 5 . 1 4 1 . 3 . 3 . 4 5 Failed 67 | . 7 . . . 7 4 . . . . . . . . . . . . . . 3 9 1 . 7 6 3 2 3 15 Catastrophic 15 | . . . . . 1 1 . . . . . . . . . . . . . . 1 3 . . 1 2 1 2 . 3 Database Lockouts . | . . . . . . . . . . . . . . . . . . . . . . . . . . . . . . . Manual 46 | . 10 . 1 . 9 2 . . . . . . . . . . . . 1 . . . 1 . 10 1 4 . . 7 Terminals 103 | . 13 . . . 14 7 . . . . . . . . . . . . . . 4 13 2 . 10 6 6 2 6 20 Fabricators . | . . . . . . . . . . . . . . . . . . . . . . . . . . . . . . . Repair Stations . | . . . . . . . . . . . . . . . . . . . . . . . . . . . . . . . Recycling Units . | . . . . . . . . . . . . . . . . . . . . . . . . . . . . . . . Scanalyzers . | . . . . . . . . . . . . . . . . . . . . . . . . . . . . . . . Garrison Access 2 | . . . . . . 1 . . . . . . . . . . . . . . . . . . . . . . 1 . Terminal Hacks 65 | . 4 . 2 . 5 1 . 1 . . . 1 . 29 . . 1 . 5 . 1 4 1 . . . 3 . 3 4 Record 16 | . 1 . 2 . . . . . . . . . . 11 . . . . . . . . . . . . 2 . . . Part Schematic 8 | . . . . . . . . . . . . . . 8 . . . . . . . . . . . . . . . . Robot Schematic 7 | . . . . . . . . . . . . . . 7 . . . . . . . . . . . . . . . . Prototype ID Bank 10 | . 1 . . . 1 . . . . . . . . 3 . . . . 5 . . . . . . . . . . . Open Door 11 | . . . . . . . . 1 . . . 1 . . . . 1 . . . . 4 1 . . . . . 3 . Branch Access Points 3 | . 1 . . . 1 1 . . . . . . . . . . . . . . . . . . . . . . . . Emergency Access Points 1 | . . . . . . . . . . . . . . . . . . . . . . . . . . . . . . 1 Terminal Index 1 | . . . . . . . . . . . . . . . . . . . . . . . . . . . . . . 1 Alert Level 1 | . . . . . . . . . . . . . . . . . . . . . 1 . . . . . . . . . Unreport Threat 2 | . . . . . 2 . . . . . . . . . . . . . . . . . . . . . . . . . Disarm Traps 1 | . . . . . . . . . . . . . . . . . . . . . . . . . . . 1 . . . Maintenance Status 1 | . 1 . . . . . . . . . . . . . . . . . . . . . . . . . . . . . Security Status 1 | . . . . . . . . . . . . . . . . . . . . . . . . . . . . . . 1 Zone Layout 1 | . . . . . 1 . . . . . . . . . . . . . . . . . . . . . . . . . Disengage Seal 1 | . . . . . . . . . . . . . . . . . . . . . . . . . . . . . . 1 Fabricator Hacks . | . . . . . . . . . . . . . . . . . . . . . . . . . . . . . . . Repair Station Hacks . | . . . . . . . . . . . . . . . . . . . . . . . . . . . . . . . Recycling Unit Hacks . | . . . . . . . . . . . . . . . . . . . . . . . . . . . . . . . Scanalyzer . | . . . . . . . . . . . . . . . . . . . . . . . . . . . . . . . Garrison Access Hacks 2 | . . . . . . 1 . . . . . . . . . . . . . . . . . . . . . . 1 . Seal Access 2 | . . . . . . 1 . . . . . . . . . . . . . . . . . . . . . . 1 . Unauthorized Hacks 10 | . 2 . . . 2 2 . . . . . . . . . . . . . . . . . . 3 . . . . 1 Terminals 10 | . 2 . . . 2 2 . . . . . . . . . . . . . . . . . . 3 . . . . 1 Assimilate 1 | . . . . . . 1 . . . . . . . . . . . . . . . . . . . . . . . . Botnet 6 | . 2 . . . 2 1 . . . . . . . . . . . . . . . . . . . . . . . 1 Sabotage 3 | . . . . . . . . . . . . . . . . . . . . . . . . . 3 . . . . . Fabricators . | . . . . . . . . . . . . . . . . . . . . . . . . . . . . . . . Repair Stations . | . . . . . . . . . . . . . . . . . . . . . . . . . . . . . . . Recycling Units . | . . . . . . . . . . . . . . . . . . . . . . . . . . . . . . . Scanalyzers . | . . . . . . . . . . . . . . . . . . . . . . . . . . . . . . . Garrison Access . | . . . . . . . . . . . . . . . . . . . . . . . . . . . . . . . Data Cores Recovered 1 | . . . . . . . . . . . 1 . . . . . . . . . . . . . . . . . . . Used . | . . . . . . . . . . . . . . . . . . . . . . . . . . . . . . . Hacking Detections 28 | . 3 . . . 3 2 . . . . . . . . . . . . . . 2 5 . . 3 2 2 1 1 4 Full Trace Events 5 | . . . . . . . . . . . . . . . . . . . . . 1 . . . 2 . . . . 2 Feedback Events 2 | . . . . . . . . . . . . . . . . . . . . . . . . . 1 . . . . 1 Corruption 1 | . . . . . . . . . . . . . . . . . . . . . . . . . 1 . . . . . Hackware Fried 1 | . . . . . . . . . . . . . . . . . . . . . . . . . . . . . . 1 Feedback Blocked . | . . . . . . . . . . . . . . . . . . . . . . . . . . . . . . . Robot Schematics Acquired 7 | . . . . . . . . . . . . . . 7 . . . . . . . . . . . . . . . . Robots Built . | . . . . . . . . . . . . . . . . . . . . . . . . . . . . . . . Authchips . | . . . . . . . . . . . . . . . . . . . . . . . . . . . . . . . Time . | . . . . . . . . . . . . . . . . . . . . . . . . . . . . . . . Total Robot Build Rating . | . . . . . . . . . . . . . . . . . . . . . . . . . . . . . . . Part Schematics Acquired 8 | . . . . . . . . . . . . . . 8 . . . . . . . . . . . . . . . . Parts Built . | . . . . . . . . . . . . . . . . . . . . . . . . . . . . . . . Authchips . | . . . . . . . . . . . . . . . . . . . . . . . . . . . . . . . Time . | . . . . . . . . . . . . . . . . . . . . . . . . . . . . . . . Total Part Build Rating . | . . . . . . . . . . . . . . . . . . . . . . . . . . . . . . . Parts Repaired . | . . . . . . . . . . . . . . . . . . . . . . . . . . . . . . . Time . | . . . . . . . . . . . . . . . . . . . . . . . . . . . . . . . Parts Recycled . | . . . . . . . . . . . . . . . . . . . . . . . . . . . . . . . Recycled Matter . | . . . . . . . . . . . . . . . . . . . . . . . . . . . . . . . Retrieved Matter . | . . . . . . . . . . . . . . . . . . . . . . . . . . . . . . . Retrieved Components . | . . . . . . . . . . . . . . . . . . . . . . . . . . . . . . . Parts Scanalyzed . | . . . . . . . . . . . . . . . . . . . . . . . . . . . . . . . Part Schematics Acquired . | . . . . . . . . . . . . . . . . . . . . . . . . . . . . . . . Parts Damaged . | . . . . . . . . . . . . . . . . . . . . . . . . . . . . . . . Bothacking | -11 -10 -10 -10 -9 -8 -7 -7 -7 -7 -6 -6 -6 -6 -6 -5 -5 -5 -5 -5 -4 -4 -4 -4 -4 -4 -3 -3 -2 -1 -1 ------------ Run | Yrd Mat Min Exi Min Mat Fac Low Low Zio Pro Fac Low Low Dat Pro Fac Upp Upp War Pro Fac Ext Cet Arc Hub Res Qua Res Acc Com Used RIF Installer . | . . . . . . . . . . . . . . . . . . . . . . . . . . . . . . . Robots Hacked . | . . . . . . . . . . . . . . . . . . . . . . . . . . . . . . . Non-combat . | . . . . . . . . . . . . . . . . . . . . . . . . . . . . . . . Combat . | . . . . . . . . . . . . . . . . . . . . . . . . . . . . . . . Robot Hacks Applied . | . . . . . . . . . . . . . . . . . . . . . . . . . . . . . . . Relay Couplers Released 3 | . . . . . . . . . . . . . . . . . . . . . . . . . . . . 3 . . Machine Destruction 3 | . . . . . . . . . . . . . . . . . . . . . . . . . . . . 3 . . Fabnet Peak Effective % . | . . . . . . . . . . . . . . . . . . . . . . . . . . . . . . . Robots Rewired 25 | . . . 3 . . . . . . . . . . . . . . 1 . . . 21 . . . . . . . . Allies Hacked . | . . . . . . . . . . . . . . . . . . . . . . . . . . . . . . . Hacks Repelled . | . . . . . . . . . . . . . . . . . . . . . . . . . . . . . . . Allies | -11 -10 -10 -10 -9 -8 -7 -7 -7 -7 -6 -6 -6 -6 -6 -5 -5 -5 -5 -5 -4 -4 -4 -4 -4 -4 -3 -3 -2 -1 -1 -------- Run | Yrd Mat Min Exi Min Mat Fac Low Low Zio Pro Fac Low Low Dat Pro Fac Upp Upp War Pro Fac Ext Cet Arc Hub Res Qua Res Acc Com Total Allies 44 | . . 1 3 . . 1 . . . . . . . . . . . 1 . . . 33 5 . . . . . . . Largest Group 27 | . . 1 3 3 . 1 . . . . . . . . . . . 1 . . . 24 27 25 23 . . . . . Highest-Rated Group 1569 | . . 31 37 37 . 26 . . . . . . . . . . . 12 . . . 1181 1569 1476 1288 . . . . . Highest-Rated Ally 159 | . . 31 21 21 . 26 . . . . . . . . . . . 12 . . . 159 159 159 96 . . . . . Total Orders 25 | . . . . . . . . . . . 10 . . . . 5 . 1 2 . 3 2 2 . . . . . . . STAY 2 | . . . . . . . . . . . . . . . . . . . . . . 1 1 . . . . . . . ROAM 1 | . . . . . . . . . . . . . . . . . . 1 . . . . . . . . . . . . FOLLOW 2 | . . . . . . . . . . . . . . . . . . . . . . 1 1 . . . . . . . EXPLORE 3 | . . . . . . . . . . . . . . . . . . . 1 . 2 . . . . . . . . . RETURN 17 | . . . . . . . . . . . 10 . . . . 5 . . 1 . 1 . . . . . . . . . Ally Attacks 447 | . . . . 21 . . . . . . . . . . . . . 1 . . . 163 57 49 156 . . . . . Total Damage 11939 | . . . . 220 . . . . . . . . . . . . . 12 . . . 4155 1568 1382 4602 . . . . . Kills 67 | . . . . 2 . . . . . . . . . . . . . . . . . 22 11 4 28 . . . . . Allies Corrupted 2 | . . . . . . . . . . . . . . . . . . . . . . . . . 2 . . . . . Allies Melted 3 | . . . . . . . . . . . . . . . . . . . 1 . . . . . . . . 2 . . Intel | -11 -10 -10 -10 -9 -8 -7 -7 -7 -7 -6 -6 -6 -6 -6 -5 -5 -5 -5 -5 -4 -4 -4 -4 -4 -4 -3 -3 -2 -1 -1 ------- Run | Yrd Mat Min Exi Min Mat Fac Low Low Zio Pro Fac Low Low Dat Pro Fac Upp Upp War Pro Fac Ext Cet Arc Hub Res Qua Res Acc Com Robot Analysis Total . | . . . . . . . . . . . . . . . . . . . . . . . . . . . . . . . Derelict Logs Recovered 15 | . . 1 . . . . 2 1 . . . 2 1 . 3 . 2 2 . 1 . . . . . . . . . . Drone Launches 20 | . . . . . . . . . . . 10 . . . . 5 . . 1 . 4 . . . . . . . . . Drone Recoveries 18 | . . . . . . . . . . . 10 . . . . 5 . . . . 3 . . . . . . . . . Exploration | -11 -10 -10 -10 -9 -8 -7 -7 -7 -7 -6 -6 -6 -6 -6 -5 -5 -5 -5 -5 -4 -4 -4 -4 -4 -4 -3 -3 -2 -1 -1 ------------- Run | Yrd Mat Min Exi Min Mat Fac Low Low Zio Pro Fac Low Low Dat Pro Fac Upp Upp War Pro Fac Ext Cet Arc Hub Res Qua Res Acc Com Turns Passed 27490 | 114 527 950 713 514 1212 1246 657 622 769 787 1003 872 1147 417 556 2437 711 932 1208 639 758 1828 525 453 429 773 447 1314 610 2320 Spaces Moved 17927 | 53 284 554 421 262 824 1057 595 562 737 438 542 721 624 211 364 1593 570 697 698 396 515 993 265 228 288 585 267 924 426 1233 Core 20 | 4 . . . . . . . . . . 4 . . . . . . . . . . . . . . . . . . 12 Treads 1639 | 49 284 554 421 150 1 . . . . . . . . . . . . . . . . . . . . . . . . 180 Legs 11825 | . . . . . . . . . . . 437 721 624 211 364 1593 570 697 698 396 515 993 265 228 288 585 267 924 426 1023 Wheels 969 | . . . . 112 823 . . . . . 16 . . . . . . . . . . . . . . . . . . 18 Hover 3474 | . . . . . . 1057 595 562 737 438 85 . . . . . . . . . . . . . . . . . . . Flight . | . . . . . . . . . . . . . . . . . . . . . . . . . . . . . . . Fastest Speed 50 | 50 160 160 160 110 86 103 103 103 103 103 100 120 120 120 120 120 120 120 115 115 114 115 115 115 114 120 120 118 116 50 Average Speed 121 | 153 160 160 160 138 115 103 103 103 103 137 131 120 120 120 120 124 120 120 116 141 116 115 115 115 115 120 120 119 116 130 Slowest Speed 750 | 160 160 160 160 160 240 103 103 103 103 240 750 120 120 120 120 190 120 120 120 190 186 186 115 115 120 120 120 120 118 400 Overloaded Moves . | . . . . . . . . . . . . . . . . . . . . . . . . . . . . . . . Propulsion Burnouts . | . . . . . . . . . . . . . . . . . . . . . . . . . . . . . . . Robots Hopped . | . . . . . . . . . . . . . . . . . . . . . . . . . . . . . . . Cave-ins Triggered 1 | . . . . . . . . . . . . . . . . 1 . . . . . . . . . . . . . . Exploration Rate (%) 54 | 4 54 97 89 33 48 34 72 69 80 58 17 74 63 80 56 39 81 75 89 60 15 85 79 93 38 18 32 31 11 30 Regions Visited 30 Branch Regions 21 Pre-discovered Areas 5 | . . . 1 . . . . . 1 . . . 1 1 . . 1 . . . . . . . . . . . . . Known Exits Taken 19 | . 1 . . . 1 1 1 1 1 1 1 1 1 1 1 . . . . 1 . . . 1 1 1 1 1 1 . Unknown Exits Taken 11 | 1 . 1 1 1 . . . . . . . . . . . 1 1 1 1 . 1 1 1 . . . . . . . Scrap Searched 24 | . . 1 . 1 . . 3 2 5 . . . 6 . 2 . 1 1 . 2 . . . . . . . . . . Spaces Dug 108 | . . . . . . 14 12 2 . 2 11 . 2 . . 23 . . . . 4 . 6 2 6 4 2 9 5 4 Terrain Destroyed 242 | . . . . . . 14 31 63 . 23 11 . 2 . . 23 . 13 . . 4 . 6 2 6 4 2 9 7 22 Melee 95 | . . . . . . 14 1 2 . 2 11 . 2 . . 23 . . . . 4 . 6 2 6 4 2 9 3 4 Projectile 20 | . . . . . . . . . . . . . . . . . . . . . . . . . . . . . 4 16 AOE 125 | . . . . . . . 30 61 . 21 . . . . . . . 13 . . . . . . . . . . . . Terrain Rammed . | . . . . . . . . . . . . . . . . . . . . . . . . . . . . . . . Walls Destroyed . | . . . . . . . . . . . . . . . . . . . . . . . . . . . . . . . Machines Disabled . | . . . . . . . . . . . . . . . . . . . . . . . . . . . . . . . Actions | -11 -10 -10 -10 -9 -8 -7 -7 -7 -7 -6 -6 -6 -6 -6 -5 -5 -5 -5 -5 -4 -4 -4 -4 -4 -4 -3 -3 -2 -1 -1 --------- Run | Yrd Mat Min Exi Min Mat Fac Low Low Zio Pro Fac Low Low Dat Pro Fac Upp Upp War Pro Fac Ext Cet Arc Hub Res Qua Res Acc Com Total 22223 | 68 325 586 462 333 1029 1196 632 592 747 612 768 726 1016 313 483 1912 592 762 1094 437 609 1561 472 407 355 643 349 1061 495 1586 Wait 2308 | . 9 11 1 13 70 42 29 3 . 150 115 . 353 32 112 156 9 17 367 2 15 322 184 165 8 19 33 22 18 31 Move 17897 | 52 283 553 420 261 823 1056 594 561 736 437 541 720 623 210 363 1592 569 696 697 395 514 992 264 227 287 584 266 923 425 1233 Hop . | . . . . . . . . . . . . . . . . . . . . . . . . . . . . . . . Pick Up 157 | 2 9 2 1 2 26 16 . 3 2 . 9 . 3 1 2 16 2 3 7 1 9 8 3 3 3 7 2 6 1 8 Fast Attach 155 | 7 1 1 2 1 15 2 . 1 3 3 14 . 1 5 . 4 1 1 7 . 5 7 3 . 2 4 4 11 6 44 Attach 110 | . 1 1 . 7 . 8 . 1 . 6 2 . 1 5 . 9 . 3 1 . 11 2 1 1 3 6 . 6 5 30 Detach 62 | . 2 2 1 1 5 5 . 1 . 1 5 . 1 4 . 3 . . 2 . 2 . 1 . . 2 . 4 3 17 Swap 239 | . 2 . . 3 5 10 5 6 1 5 23 5 13 7 3 30 4 8 1 8 11 19 1 1 12 9 11 18 2 16 Drop 195 | . 2 . 3 . 26 19 . 3 5 . 4 1 10 3 3 18 2 1 12 4 5 11 5 2 7 4 6 21 1 17 Fire 181 | 7 16 16 . 38 . . 3 8 . 6 . . . . . . . 3 . 4 . . . . . . 3 . 5 72 Melee 701 | . . . . 3 59 38 1 5 . 4 55 . 11 46 . 82 5 25 . 21 37 63 9 8 30 8 19 50 29 93 Ram . | . . . . . . . . . . . . . . . . . . . . . . . . . . . . . . . Kick 8 | . . . . . . . . . . . . . . . . 2 . . . 2 . . 1 . 3 . . . . . Crush 4 | . . . . 4 . . . . . . . . . . . . . . . . . . . . . . . . . . Escape Stasis . | . . . . . . . . . . . . . . . . . . . . . . . . . . . . . . . Rewire 144 | . . . 34 . . . . . . . . . . . . . . 5 . . . 105 . . . . . . . . Trap . | . . . . . . . . . . . . . . . . . . . . . . . . . . . . . . . Miscellaneous 62 | . . . . . . . . . . . . . . . . . . . . . . 32 . . . . 5 . . 25 Route ------- -11/Scrapyard -10/Materials (discovered 4 exits: [*Mat x2] / *Min x2) -10/Mines (discovered 4 exits: [*Mat x2] / *Exi / [Sub]) -10/Exiles -9/Mines -8/Materials (discovered 2 exits: *Fac x2) -7/Factory (discovered 4 exits: *Fac x2 / *Low x2) -7/Lower Caves -7/Lower Caves -7/Zion -6/Proximity Caves -6/Factory (discovered 6 exits: Fac x4 / *Low x2) -6/Lower Caves -6/Lower Caves -6/Data Miner -5/Proximity Caves -5/Factory (discovered 4 exits: Fac x3 / *Upp) -5/Upper Caves -5/Upper Caves (discovered 2 exits: *Fac / *War) -5/Warlord -4/Proximity Caves -4/Factory (discovered 3 exits: *Res / *Upp / *Ext) -4/Extension (discovered 2 exits: *Res / *Cet) -4/Cetus (discovered 2 exits: *Res / [*Arc]) -4/Archives (discovered 3 exits: *Res / *Hub x2) -4/Hub_04(d) -3/Research -3/Quarantine -2/Research (discovered 2 exits: *Acc x2) -1/Access -1/Command History --------- Turn | Location | Event 27 | -11/Scrapyard | Discovered new exit (range 16) 115 | -11/Scrapyard | Entered Materials 306 | -10/Materials | Build established: Mutant 340 | -10/Materials | Discovered new exit (range 4) 517 | -10/Materials | Discovered new exit (range 8) 581 | -10/Materials | Identified exit to Mines 642 | -10/Materials | Entered Mines 759 | -10/Mines | Discovered new exit (range 12) 806 | -10/Mines | Discovered new exit (range 13) 814 | -10/Mines | Received a Mining Laser from a helpful Derelict 1023 | -10/Mines | Learned location of 1 exit from Materials 1043 | -10/Mines | Deemed a non-threat by the Exiles lab entrance 1043 | -10/Mines | Discovered new exit (range 5) 1101 | -10/Mines | Found a damaged Exp. Sensor Array with a note attached 1105 | -10/Mines | Found Prototype Device 1105 | -10/Mines | Identified Exp. Sensor Array 1387 | -10/Mines | Received a Rocket Launcher from a helpful Derelict 1554 | -10/Mines | Discovered new exit (range 13) 1592 | -10/Mines | Entered Exiles 1592 | -10/Exiles | Found Exiles lab destroyed 1757 | -10/Exiles | Opened EX-Vault 1763 | -10/Exiles | Found Prototype Slashing Weapon 1763 | -10/Exiles | Identified Longsword +1 1952 | -10/Exiles | Learned location of Zion (-7) 2288 | -10/Exiles | Discovered new exit (range 11) 2305 | -10/Exiles | Entered Mines 2305 | -9/Mines | Accompanied by 3 allies 2315 | -9/Mines | Found DCF Scrap (11 items) 2398 | -9/Mines | Discovered new exit (range 15) 2574 | -9/Mines | Assembled infested the area 2579 | -9/Mines | Assisted by a Guerilla fighting off Assembled 2630 | -9/Mines | Lost 3 allies 2641 | -9/Mines | Core integrity fell below 50% 2659 | -9/Mines | Lost 5 parts (1p2n2w) 2769 | -9/Mines | Core integrity fell below 20% 2819 | -9/Mines | Entered Materials 2819 | -8/Materials | Evolved 4 slots: Propulsion x2, Utility x2 2820 | -8/Materials | Identified exit to Factory 3991 | -8/Materials | Discovered exit to Factory (range 8) 4031 | -8/Materials | Entered Factory 4031 | -7/Factory | Evolved 2 slots: Utility x2 4344 | -7/Factory | Build established: Gladiator 4750 | -7/Factory | Discovered new exit (range 8) 4756 | -7/Factory | Identified exit to Factory 5033 | -7/Factory | Identified exit to Lower Caves 5243 | -7/Factory | Discovered exit to Factory (range 12) 5277 | -7/Factory | Entered Lower Caves 5355 | -7/Lower Caves | Learned Factory terminal intel 5855 | -7/Lower Caves | Learned Factory emergency access door positions 5883 | -7/Lower Caves | Discovered new exit (range 13) 5931 | -7/Lower Caves | Identified exit to Lower Caves 5934 | -7/Lower Caves | Entered another Lower Caves area 6044 | -7/Lower Caves | Destroyed 7 combat bots 6139 | -7/Lower Caves | Encountered a Warlord checkpoint 6144 | -7/Lower Caves | Learned 4 Factory zone layouts 6185 | -7/Lower Caves | Discovered new exit (range 6) 6192 | -7/Lower Caves | Identified exit to Zion 6556 | -7/Lower Caves | Entered Zion 6579 | -7/Zion | Given A8's code to call for help 6587 | -7/Zion | Discovered new exit (range 14) 6729 | -7/Zion | Given the Hacking Drone Bay 6729 | -7/Zion | Found Prototype Device 6899 | -7/Zion | Visited the Megawrench Repair Shop 6899 | -7/Zion | Megawrench repaired 8 parts 7039 | -7/Zion | Learned location of Data Miner (-6) 7228 | -7/Zion | Found CR-A16's Pointy Stick 7323 | -7/Zion | Identified exit to Proximity Caves 7325 | -7/Zion | Entered Proximity Caves 7440 | -6/Proximity Caves | Attracted the attention of an 0b10 outpost 7626 | -6/Proximity Caves | Lost 7 parts (1p3n2u1w) 8058 | -6/Proximity Caves | Discovered exit to Factory (range 16) 8112 | -6/Proximity Caves | Entered Factory 8112 | -6/Factory | Evolved 2 slots: Propulsion x2 8115 | -6/Factory | Loaded intel: 26 terminal locations 8136 | -6/Factory | Identified Hacking Drone Bay 8602 | -6/Factory | Identified exit to Lower Caves 8635 | -6/Factory | Build established: Scavenger-Mutant 8778 | -6/Factory | Identified exit to Factory 9115 | -6/Factory | Entered Lower Caves 9211 | -6/Lower Caves | Learned location of 1 exit from Factory 9299 | -6/Lower Caves | Learned 4 Factory zone layouts 9389 | -6/Lower Caves | Build established: Scavenger-Assassin 9918 | -6/Lower Caves | Discovered new exit (range 15) 9986 | -6/Lower Caves | Identified exit to Lower Caves 9987 | -6/Lower Caves | Entered another Lower Caves area 10569 | -6/Lower Caves | Ambushed by wild Derelicts 10888 | -6/Lower Caves | Build established: Scavenger-Gladiator 10954 | -6/Lower Caves | Discovered new exit (range 9) 10965 | -6/Lower Caves | Identified exit to Data Miner 11066 | -6/Lower Caves | Found Alien Artifact 11066 | -6/Lower Caves | Identified Core Expander 11066 | -6/Lower Caves | Installed Core Expander, added new Weapon slot 11134 | -6/Lower Caves | Entered Data Miner 11134 | -6/Data Miner | Discovered new exit (range 6) 11157 | -6/Data Miner | Met Data Miner 11182 | -6/Data Miner | Learned location of Section 7 (-2) 11182 | -6/Data Miner | Acquired the access code to Warlord's prototype stash 11200 | -6/Data Miner | Received God Mode back door access code from Data Miner 11218 | -6/Data Miner | Data Conduit disabled 11550 | -6/Data Miner | Identified exit to Proximity Caves 11551 | -6/Data Miner | Entered Proximity Caves 11596 | -5/Proximity Caves | Learned location of 1 exit from Factory 11647 | -5/Proximity Caves | Learned Factory garrison access intel 11684 | -5/Proximity Caves | Learned location of 1 exit from Factory 12095 | -5/Proximity Caves | Discovered exit to Factory (range 7) 12107 | -5/Proximity Caves | Entered Factory 12107 | -5/Factory | Evolved 2 slots: Utility x1, Weapon x1 12108 | -5/Factory | Identified exit to Factory 12110 | -5/Factory | Loaded intel: 4 garrison access locations 12350 | -5/Factory | Spotted B-75 Beast 13515 | -5/Factory | Build established: Gladiator 14034 | -5/Factory | Crushed by falling debris 14034 | -5/Factory | System corruption reached 10% 14065 | -5/Factory | Lost 4 parts (1n2u1w) 14524 | -5/Factory | Discovered new exit (range 15) 14544 | -5/Factory | Entered Upper Caves 14757 | -5/Upper Caves | Attracted the attention of an 0b10 checkpoint 14941 | -5/Upper Caves | Learned location of Armory (-3) 14958 | -5/Upper Caves | Learned Factory emergency access door positions 15124 | -5/Upper Caves | Discovered new exit (range 7) 15255 | -5/Upper Caves | Entered another Upper Caves area 15341 | -5/Upper Caves | Discovered exit to Factory (range 8) 15383 | -5/Upper Caves | Learned Factory terminal intel 16101 | -5/Upper Caves | Lost 4 parts (1p2u1w) 16134 | -5/Upper Caves | Discovered new exit (range 6) 16187 | -5/Upper Caves | Entered Warlord 16238 | -5/Warlord | System corruption cleaned by Quarantine Array 16318 | -5/Warlord | Received a Watcher feed algorithm from an ecstatic Tinkerer 16502 | -5/Warlord | Met Warlord 16513 | -5/Warlord | Opened Warlord's prototype stash 16517 | -5/Warlord | Found Prototype Reactor 16527 | -5/Warlord | Warlord's base attacked by MAIN.C 16534 | -5/Warlord | Found Prototype Device 16534 | -5/Warlord | Identified Thermal Barrier 16544 | -5/Warlord | Found Prototype Device 16544 | -5/Warlord | Identified Exp. Cloaking Device 16788 | -5/Warlord | Lost 4 allies 16854 | -5/Warlord | Lost 4 allies 16877 | -5/Warlord | Warlord forces counterattacked 16922 | -5/Warlord | Spotted Executioner 16970 | -5/Warlord | Spotted Executioner 16985 | -5/Warlord | Spotted Striker 17029 | -5/Warlord | Spotted Executioner 17047 | -5/Warlord | P-70 Sage assimilated allied W5-5OR(g) 17052 | -5/Warlord | P-70 Sage assimilated allied VJ-H8U(b) 17065 | -5/Warlord | Spotted Striker 17092 | -5/Warlord | Spotted Executioner 17149 | -5/Warlord | Lost 30 allies 17202 | -5/Warlord | Warlord base infiltrated, sounded retreat 17203 | -5/Warlord | Enhanced Grunt warped into view 17203 | -5/Warlord | Enhanced Grunt warped into view 17203 | -5/Warlord | Enhanced Grunt warped into view 17203 | -5/Warlord | Enhanced Demolisher warped into view 17203 | -5/Warlord | Enhanced Demolisher warped into view 17203 | -5/Warlord | Enhanced Demolisher warped into view 17380 | -5/Warlord | Discovered new exit (range 15) 17395 | -5/Warlord | Entered Proximity Caves 17530 | -4/Proximity Caves | Learned Research emergency access door positions 17958 | -4/Proximity Caves | Discovered exit to Factory (range 13) 18034 | -4/Proximity Caves | Entered Factory 18034 | -4/Factory | Evolved 2 slots: Power x1, Utility x1 18034 | -4/Factory | Identified Vortex Chain Reactor 18035 | -4/Factory | Identified exit to Upper Caves 18037 | -4/Factory | Loaded intel: 27 terminal locations 18570 | -4/Factory | Lost 7 parts (4n1u2w) 18729 | -4/Factory | Discovered new exit (range 16) 18775 | -4/Factory | Discovered new exit (range 16) 18792 | -4/Factory | Entered Extension 18800 | -4/Extension | Build established: Scavenger-Gladiator 18880 | -4/Extension | Rescued a captive Derelict 19038 | -4/Extension | Rescued a captive Derelict 19039 | -4/Extension | Rescued a captive Derelict 19079 | -4/Extension | Rescued a captive Derelict 19217 | -4/Extension | Rescued a captive Derelict 19316 | -4/Extension | Rescued a captive Derelict 19317 | -4/Extension | Rescued a captive Derelict 19541 | -4/Extension | Build established: Commander-Gladiator 20067 | -4/Extension | Spotted B-86 Titan 20075 | -4/Extension | Spotted B-86 Titan 20093 | -4/Extension | Allies destroyed B-86 Titan 20107 | -4/Extension | Lost 3 allies 20130 | -4/Extension | Rescued a captive Derelict 20131 | -4/Extension | Rescued a captive Derelict 20262 | -4/Extension | Rescued a captive Derelict 20263 | -4/Extension | Rescued a captive Derelict 20407 | -4/Extension | Rescued A7 20529 | -4/Extension | Discovered new exit (range 10) 20530 | -4/Extension | Discovered new exit (range 6) 20620 | -4/Extension | Entered Cetus 20620 | -4/Cetus | Accompanied by 24 allies (A7) 20625 | -4/Cetus | Acquired a Cetus Manufacturing Module code from A7 20632 | -4/Cetus | Spotted Cetus Guard 20633 | -4/Cetus | Spotted Cetus Guard 20634 | -4/Cetus | Spotted Cetus Guard 20634 | -4/Cetus | Allies destroyed Cetus Guard 20635 | -4/Cetus | Allies destroyed Cetus Guard 20640 | -4/Cetus | Allies destroyed Cetus Guard 20702 | -4/Cetus | Started Cetus Manufacturing Module 20727 | -4/Cetus | Manufactured an Enhanced Grunt 20752 | -4/Cetus | Manufactured an Enhanced Grunt 20777 | -4/Cetus | Manufactured an Enhanced Grunt 20802 | -4/Cetus | Manufactured an Enhanced Grunt 20827 | -4/Cetus | Manufactured an Enhanced Grunt 20849 | -4/Cetus | Escorted A7 to Cetus Mainframe 20869 | -4/Cetus | Discovered new exit (range 16) 20906 | -4/Cetus | Spotted Cetus Guard 20906 | -4/Cetus | Spotted Cetus Guard 20908 | -4/Cetus | Spotted Cetus Guard 20908 | -4/Cetus | Spotted Cetus Guard 20913 | -4/Cetus | Allies destroyed Cetus Guard 20915 | -4/Cetus | Discovered new exit (range 16) 20923 | -4/Cetus | Allies destroyed Cetus Guard 20924 | -4/Cetus | Destroyed Cetus Guard 20927 | -4/Cetus | Allies destroyed Cetus Guard 20929 | -4/Cetus | Met Revision 17 21145 | -4/Cetus | Entered Archives 21145 | -4/Archives | Accompanied by 25 allies (A7) 21150 | -4/Archives | Received a hacking code to weaken MAIN.C 21170 | -4/Archives | Discovered new exit (range 14) 21182 | -4/Archives | Discovered new exit (range 15) 21270 | -4/Archives | Identified exit to Hub_04(d) 21295 | -4/Archives | Discovered exit to Hub_04(d) (range 15) 21359 | -4/Archives | Identified exit to Research 21598 | -4/Archives | Entered Hub_04(d) 21598 | -4/Hub_04(d) | Accompanied by 23 allies 21804 | -4/Hub_04(d) | Lost 9 allies 21830 | -4/Hub_04(d) | Discovered exit to Research (range 12) 21932 | -4/Hub_04(d) | Lost 3 allies 21986 | -4/Hub_04(d) | Network Hub disabled 21992 | -4/Hub_04(d) | Spotted Lightning 21992 | -4/Hub_04(d) | Spotted Lightning 21992 | -4/Hub_04(d) | Spotted Lightning 22016 | -4/Hub_04(d) | System corruption reached 10% 22027 | -4/Hub_04(d) | Entered Research 22027 | -3/Research | Evolved 2 slots: Propulsion x1, Utility x1 22051 | -3/Research | Build established: Scavenger-Gladiator 22052 | -3/Research | Lost 4 parts (1p2n1u) 22115 | -3/Research | Found Prototype Processor 22115 | -3/Research | Identified Exp. Melee Analysis Suite 22227 | -3/Research | Revision forces began assault on 0b10 22261 | -3/Research | Met up with Revision 17++ 22469 | -3/Research | Lost 3 allies 22727 | -3/Research | Research terminal network offline 22794 | -3/Research | Discovered new exit (range 6) 22798 | -3/Research | Identified exit to Quarantine 22800 | -3/Research | Entered Quarantine 22902 | -3/Quarantine | Found Alien Reactor 22902 | -3/Quarantine | Identified Matter Drive 23120 | -3/Quarantine | System corruption reached 10% 23159 | -3/Quarantine | Discovered new exit (range 15) 23246 | -3/Quarantine | Identified exit to Research 23247 | -3/Quarantine | Entered Research 23247 | -2/Research | Warlord forces began assault on 0b10 23247 | -2/Research | Evolved 2 slots: Power x1, Propulsion x1 23357 | -2/Research | Research machine network offline 23614 | -2/Research | Spotted Executioner 23625 | -2/Research | Destroyed Executioner 23653 | -2/Research | Lost 4 allies 23947 | -2/Research | Discovered new exit (range 20) 23964 | -2/Research | Warlord destroyed during the assault 24006 | -2/Research | Borebot progress halted 24173 | -2/Research | Spotted Striker 24198 | -2/Research | Spotted Striker 24232 | -2/Research | Lost 6 allies 24237 | -2/Research | Destroyed Striker 24244 | -2/Research | Destroyed Striker 24349 | -2/Research | Borebot progress halted 24375 | -2/Research | Destroyed 9 combat bots 24531 | -2/Research | Spotted Striker 24545 | -2/Research | Discovered new exit (range 15) 24560 | -2/Research | Identified exit to Access 24561 | -2/Research | Entered Access 24561 | -1/Access | Evolved 2 slots: Utility x2 24620 | -1/Access | Lost 6 parts (1p4n1u) 25163 | -1/Access | Discovered new exit (range 8) 25170 | -1/Access | Identified exit to Command 25171 | -1/Access | Entered Command 25448 | -1/Command | Spotted B-99 Colossus 25589 | -1/Command | Phase Generator disabled 26339 | -1/Command | Disengaged cave seal 26339 | -1/Command | Wild derelicts emerged from the dark tunnel 26449 | -1/Command | System corruption reached 10% 26479 | -1/Command | Lost 3 parts (1p2n) 26496 | -1/Command | Adv. Hacking Suite fried by hacking feedback 26555 | -1/Command | Lost 4 parts (1p2n1u) 26815 | -1/Command | Core integrity fell below 50% 26827 | -1/Command | Lost 18 parts (4p7n3u4w) 26832 | -1/Command | System corruption reached 30% 26959 | -1/Command | P-80 Master assimilated allied ZK-X9C(h) 27015 | -1/Command | Lost 3 parts (2n1w) 27287 | -1/Command | Lost 20 parts (4p7n2u7w) 27414 | -1/Command | Lost 3 parts (1n2u) 27475 | -1/Command | Core integrity fell below 20% 27491 | -1/Command | Destroyed by P-80 Master with Gamma Rifle Last Messages --------------- 27480_ Penetrated by Slug. 27480_ HV Slug penetrates Wall. 27481_ Rnf. Antimatter Reactor destroyed. 27482_ System corrupted: Heat flow error (+298). 27482_ Dropped Hcp. Storage Unit. 27482_ Dropped Bore Cannon. 27483_ Overheating: System interference. 27483_ Adv. Target Analyzer temporarily disabled. 27483_ Enh. Force Lance temporarily disabled. 27483_ Adv. Target Analyzer temporarily disabled. 27483_ Dropped Enh. Force Lance. 27483_ Dropped Graphene Brace. 27483_ Penetrated by Slug. 27483_ Arm. Medium Treads destroyed. 27483_ Penetrated by Slug. 27484_ Dropped Imp. Proton Missile Launcher. 27485_ Overheating: Core damaged (-208). 27485_ Acquired Adv. Sensor Array. 27486_ Penetrated by Slug. 27489_ Acquired 114 matter. Map ----- +----------------------------------------------------+ | ###*#? # ? # #### # ## ## " | | # #[## ?? # "" # #### + ## ## """ | | [*%%#? # """" + #### # ## ######### | | =!* ## ? ?? """" # #### # ## ######### | | !*=!=# ?? # "" # #### # ## ######### | | !%%[*# ? # # #### # ## ######### | | !%* [+ # # ####+###### ###+########## | | [%!% # ? # # #### ###### ### ########## | | !% "## ##?####### #### ###### ### ########## | | # ##? ########## #### ####?# ### ########## | | ## ### ? ########## #### ###### ### ########## | | ##%##? ? ##?####### #### ###### ### ########## | | ?#+#?###"#####?####### ### ##### ###+######"### | | %%* ? ###?######## ### # [ | | !=% % #######?#### ### ##### # | | !% ### ?####### ########### # = | | ! ### ## ########### + | | ? %"" "##"## #####+############ # | | ? """" "* # ## [== ######## # | | ?? """" " % # ## * ########+############## | | ?? "" " # ## ##### ########## | | ? ? # # ## ##### ########## | | ?? # " ## ##### ########## | | ?? "!! " ## ##### ########## | | ?? ???#!p ; ;# ##### = / | | ?#?##+##?## ; ;; @ + + ########## | | ?#### ##??# !!=;; ##### #### | | ###"%! #######*;%;;#+###########=%! #### | | *% p!%!!!] " ########### #### | | ##"# %%"## ##]*|!"##"############/########## | | ?######### ## /! * # ### ######??## | | ?????#???#+#### #? ### ################ | | ?? ? ??? ? # = # ?## ################ | | ??? ?"""?? # # ### ### ##### | | ?????"?"?? ??# # ### ### | | ??????" ? # "" "" #? ? ### | | ??????? ?? # ""T"" # ### ### | | ??????? ? ?" ?# """ ###+##?## ### ##### | | ???????? ???? ############# ################ | | ??????????Y" ##?######?### ###################### | | ??????????"?? ####??####### ##########?########### | | ???????? ??? ? ? ? ######?############### | | ???????????????#? ############?#??############## | | ??????????????#?# ?############?################# | | ????????????????# #? ########?############## | | ????????????? ??# # #?####?#?########### | | ???????????????## # ##############?##### | | ????????????????? ?# ?? ??################## | | ?????????????? ?? ??? ########?########### | | ??????????????? ??? ???? + ##?############# | +----------------------------------------------------+ Best States ------------- Heat Dissipation 71 Energy Generation 65 Energy Capacity 800 Matter Stores 300 Matter Capacity 300 Sight Range 16 Robot Scan Range 20 Terrain Scan Range 24 Terrain Scan Density 210 Jamming Range 16 Armor Coverage 1275 Resistance: TH 15 Resistance: EM 25 Power Shielding 66 Utility Shielding 33 Weapon Shielding 33 Weapon Cycling 25 Melee Speed Boost 30 Phase Shifting 10 Evasion (%) 67 Melee Accuracy 6 Target Analysis 12 Core Analysis 6 Recoil Reduction 5 Kinecelleration 30 Force Boost 20 Offensive Hacking 26 Defensive Hacking 12 Item Schematics ----------------- Combat Drone Bay | -6/Data Miner | Free Lgt. Regenerative Plating | -6/Data Miner | Free Enh. Armored Leg | -6/Data Miner | Free Prc. Matter Filter | -6/Data Miner | Free Imp. KE Penetrator | -6/Data Miner | Free Impulse Thruster | -6/Data Miner | Free Imp. Force Field | -6/Data Miner | Free Matter Neutralizer | -6/Data Miner | Free Robot Schematics ------------------ B-60 Warrior | -6/Data Miner | Free B-48 Gladiator | -6/Data Miner | Free C-35 Carver | -6/Data Miner | Free G-67 Veteran | -6/Data Miner | Free G-50 Soldier | -6/Data Miner | Free D-63 Destroyer | -6/Data Miner | Free L-61 Swordsman | -6/Data Miner | Free Fabricated ------------ Nothing Alien Tech Used ----------------- Core Expander Matter Drive Achievements -------------- Z1$+NX3F=JRE3_ZNQR Challenges ------------ None Game ------ Seed RemoteSwarmWand Manual? 0 Play Time 05:31:58 Cumulative 187.0 hours Start 2024.09.29 @ 13:59:04 End 2024.09.29 @ 23:51:39 Sessions 5 Manual Loads 0 Difficulty Rogue Special Mode None Game No. 145 Rogue 145 Adventurer 0 Explorer 0 Win Type - Total 8 Types 7/0/1/0/0/0/0/0/0 Lore% 49 Gallery% 60 Achievement% 57 Wizard Run 0 Options --------- Layout 0 ASCII 0 Keyboard 1 Movement Numpad Keybinds 0 Fullscreen 2 Font 18/X11 Map View 76x50 Zoom Use 0% Tactical HUD 1 Map Filters NONE Filters NONE Steam 1 RUN: 74f10617-cff6-42bb-8557-b86810016d15